bitfinex/quotes_SOLUSD_20250607
["timestamp","ask_amount","ask_price","bid_price","bid_amount"]
[1749308770200,7.96073872,151.74,151.69,14.55313109]
[1749308771096,7.96073872,151.74,151.7,7.96073872]
[1749308771309,7.96073872,151.74,151.69,23.07337331]
[1749308771310,33.96073872,151.76,151.71,7.96073872]
[1749308772118,7.96073872,151.76,151.71,7.96073872]
[1749308772324,7.96073872,151.76,151.72,6.59108884]
[1749308774032,7.96073872,151.75,151.71,6.59148412]
[1749308774620,7.96073872,151.73,151.69,6.59222959]
[1749308775011,7.96073872,151.72,151.69,6.59222959]
[1749308775210,7.96073872,151.72,151.68,6.59265506]
[1749308776431,7.96073872,151.72,151.67,7.96073872]
[1749308776432,7.96073872,151.71,151.67,14.5538337]
[1749308780738,7.96073872,151.69,151.66,8.33333333]
[1749308781028,7.96073872,151.68,151.66,8.33333333]
[1749308782140,7.96073872,151.67,151.66,8.33333333]
[1749308782937,26.61038758,151.67,151.66,8.33333333]
[1749308785746,18.64964886,151.67,151.66,8.33333333]
[1749308786949,33.20364926,151.67,151.66,8.33333333]
[1749308787536,26.61038758,151.67,151.66,8.33333333]
[1749308788615,33.20364926,151.67,151.66,8.33333333]
[1749308789116,26.61038758,151.67,151.66,8.33333333]
[1749308789639,33.20364926,151.67,151.66,8.33333333]
[1749308793748,25.24291054,151.67,151.66,8.33333333]
[1749308793926,18.64964886,151.67,151.66,8.33333333]
[1749308794117,7.96073872,151.69,151.66,8.33333333]
[1749308794440,26.61038758,151.7,151.66,8.33333333]
[1749308794648,18.64964886,151.7,151.66,22.88772184]
[1749308795929,26.0,151.71,151.67,7.96073872]
[1749308797047,26.0,151.71,151.68,6.592827]
[1749308797432,26.61038758,151.73,151.68,14.55356572]
[1749308797622,26.61038758,151.73,151.69,7.96073872]
[1749308798131,27.5316,151.75,151.69,7.96073872]
[1749308798320,26.61038758,151.74,151.69,7.96073872]
[1749308798515,33.96073872,151.75,151.71,7.96073872]
[1749308799058,33.96073872,151.75,151.72,6.59108884]
[1749308799839,33.96073872,151.75,151.71,14.55210009]
[1749308800151,33.96073872,151.75,151.71,6.59136137]
[1749308801728,33.96073872,151.75,151.71,14.55210009]
[1749308806053,26.0,151.75,151.72,7.96073872]
[1749308806251,7.96073872,151.77,151.72,7.96073872]
[1749308806866,7.96073872,151.76,151.72,7.96073872]
[1749308807854,7.96073872,151.75,151.71,7.96073872]
[1749308808363,7.96073872,151.72,151.67,7.96073872]
[1749308808537,7.96073872,151.72,151.66,8.33333333]
[1749308808726,7.96073872,151.72,151.67,7.96073872]
[1749308809149,7.96073872,151.72,151.68,7.96073872]
[1749308809534,7.96073872,151.72,151.68,14.55352173]
[1749308810650,18.64964886,151.75,151.68,14.55352173]
[1749308810651,25.23947611,151.75,151.7,7.96073872]
[1749308810851,7.96073872,151.74,151.7,7.96073872]
[1749308811052,7.96073872,151.74,151.68,6.59278301]
[1749308811053,7.96073872,151.73,151.69,7.96073872]
[1749308811756,7.96073872,151.73,151.68,6.59278301]
[1749308811757,7.96073872,151.72,151.67,14.55383456]
[1749308812054,7.96073872,151.72,151.68,7.96073872]
[1749308812847,7.96073872,151.72,151.68,14.55327304]
[1749308813951,18.64964886,151.72,151.69,7.96073872]
[1749308814150,7.96073872,151.74,151.69,7.96073872]
[1749308814650,26.61038758,151.75,151.7,7.96073872]
[1749308814851,7.96073872,151.74,151.69,7.96073872]
[1749308815632,25.23962734,151.75,151.69,7.96073872]
[1749308815828,7.96073872,151.74,151.69,7.96073872]
[1749308816251,7.96073872,151.74,151.69,14.55305312]
[1749308817856,14.55096899,151.74,151.69,14.55305312]
[1749308818443,26.61038758,151.73,151.69,6.5923144]
[1749308819856,7.96073872,151.72,151.68,14.55341473]
[1749308820060,7.96073872,151.71,151.67,14.55384537]
[1749308820256,7.96073872,151.7,151.66,22.88767438]
[1749308820458,7.96073872,151.69,151.66,8.33333333]
[1749308820659,7.96073872,151.7,151.66,8.33333333]
[1749308821068,7.96073872,151.69,151.66,8.33333333]
[1749308821664,7.96073872,151.67,151.66,8.33333333]
[1749308822046,26.61038758,151.67,151.66,8.33333333]
[1749308823561,18.64964886,151.67,151.66,8.33333333]
[1749308823748,26.61038758,151.67,151.66,8.33333333]
[1749308824367,18.64964886,151.67,151.66,8.33333333]
[1749308824679,26.61038758,151.67,151.66,8.33333333]
[1749308825477,6.5928983,151.68,151.66,8.33333333]
[1749308825478,7.96073872,151.68,151.66,8.33333333]
[1749308827174,14.55361627,151.68,151.66,8.33333333]
[1749308827697,7.96073872,151.67,151.66,8.33333333]
[1749308828579,7.96073872,151.68,151.66,8.33333333]
[1749308828783,18.64964886,151.69,151.66,14.92702749]
[1749308828981,7.96073872,151.71,151.67,7.96073872]
[1749308829186,7.96073872,151.71,151.66,22.88776621]
[1749308829682,7.96073872,151.7,151.66,8.33333333]
[1749308830387,6.5917941,151.71,151.66,8.33333333]
[1749308830682,7.96073872,151.7,151.66,8.33333333]
[1749308830862,7.96073872,151.69,151.66,8.33333333]
[1749308831068,7.96073872,151.68,151.66,8.33333333]
[1749308831284,7.96073872,151.69,151.66,8.33333333]
[1749308832167,14.5532907,151.69,151.66,8.33333333]
[1749308832372,7.96073872,151.68,151.66,8.33333333]
[1749308834492,18.64964886,151.68,151.66,8.33333333]
[1749308834873,26.61038758,151.68,151.66,8.33333333]
[1749308835565,26.61038758,151.67,151.66,8.33333333]
[1749308836709,33.20364926,151.67,151.66,8.33333333]
[1749308838283,26.61038758,151.67,151.66,8.33333333]
[1749308839892,33.20364926,151.67,151.66,8.33333333]
[1749308851679,26.61038758,151.67,151.66,8.33333333]
[1749308858409,26.61038758,151.69,151.66,8.33333333]
[1749308858709,7.96073872,151.71,151.67,7.96073872]
[1749308858892,7.96073872,151.71,151.67,14.55372156]
[1749308859812,26.61038758,151.72,151.68,18.38073872]
[1749308860113,7.96073872,151.73,151.68,18.38073872]
[1749308860992,7.96073872,151.73,151.69,14.55313109]
[1749308863703,7.96073872,151.73,151.68,18.38073872]
[1749308863704,26.61038758,151.72,151.68,18.38073872]
[1749308863887,7.96073872,151.7,151.68,10.42]
[1749308864082,7.96073872,151.69,151.68,10.42]
[1749308864315,23.56898974,151.72,151.68,10.42]
[1749308864522,7.96073872,151.71,151.68,10.42]
[1749308865088,25.24095272,151.72,151.68,10.42]
[1749308865299,7.96073872,151.71,151.68,10.42]
[1749308865618,30.1643141,151.72,151.68,10.42]
[1749308865809,7.96073872,151.71,151.68,10.42]
[1749308869607,12.8841001,151.71,151.68,10.42]
[1749308870915,7.96073872,151.7,151.68,10.42]
[1749308872514,7.96073872,151.69,151.68,10.42]
[1749308872699,7.96073872,151.7,151.68,10.42]
[1749308879239,14.55275444,151.7,151.68,10.42]
[1749308879417,7.96073872,151.7,151.68,10.42]
[1749308881830,14.55272278,151.7,151.68,10.42]
[1749308882021,14.55272278,151.7,151.66,8.33333333]
[1749308882533,26.61038758,151.7,151.66,22.8877547]
[1749308882832,18.64964886,151.7,151.66,22.8877547]
[1749308883224,7.96073872,151.72,151.68,7.96073872]
[1749308883428,31.53374896,151.73,151.69,7.96073872]
[1749308883628,12.8841001,151.74,151.67,40.3]
[1749308883933,7.96073872,151.73,151.68,7.96073872]
[1749308884535,7.96073872,151.74,151.7,7.96073872]
[1749308884830,33.96073872,151.75,151.71,7.96073872]
[1749308885334,7.96073872,151.75,151.71,7.96073872]
[1749308885521,7.96073872,151.75,151.71,6.5915233]
[1749308887033,7.96073872,151.75,151.71,14.55226202]
[1749308888115,25.23900568,151.76,151.71,14.55226202]
[1749308888426,26.61038758,151.76,151.71,14.55226202]
[1749308890323,11.51201839,151.78,151.73,7.96073872]
[1749308890640,18.64964886,151.77,151.73,7.96073872]
[1749308890844,26.61038758,151.77,151.73,7.96073872]
[1749308891037,7.96073872,151.78,151.72,6.59095853]
[1749308891237,7.96073872,151.78,151.74,7.96073872]
[1749308891758,14.54926728,151.78,151.74,7.96073872]
[1749308892621,7.96073872,151.78,151.74,7.96073872]
[1749308893756,49.57301024,151.79,151.75,7.96073872]
[1749308893919,38.8841001,151.79,151.75,7.96073872]
[1749308894119,33.96073872,151.79,151.75,7.96073872]
[1749308894726,33.96073872,151.79,151.75,14.55046227]
[1749308895017,43.67765862,151.8,151.76,7.96073872]
[1749308895217,25.02800976,151.8,151.76,7.96073872]
[1749308895442,32.98874848,151.8,151.76,7.96073872]
[1749308895719,25.02800976,151.8,151.76,7.96073872]
[1749308896234,39.57650341,151.8,151.75,32.96496227]
[1749308896446,7.96073872,151.78,151.75,10.44]
[1749308896945,7.96073872,151.77,151.75,10.44]
[1749308897139,14.54891848,151.79,151.75,10.44]
[1749308898057,6.58817976,151.79,151.75,10.44]
[1749308898277,7.96073872,151.79,151.75,10.44]
[1749308898960,14.54887192,151.79,151.75,10.44]
[1749308899264,7.96073872,151.77,151.75,10.44]
[1749308899762,25.23778206,151.79,151.75,10.44]
[1749308899763,7.96073872,151.78,151.75,10.44]
[1749308900460,7.96073872,151.77,151.75,10.44]
[1749308902831,7.96073872,151.76,151.75,10.44]
[1749308903544,14.55009032,151.76,151.75,10.44]
[1749308903729,7.96073872,151.76,151.75,10.44]
[1749308904154,14.55009032,151.76,151.75,10.44]
[1749308904727,7.96073872,151.76,151.75,10.44]
[1749308904930,14.55009032,151.76,151.75,10.44]
[1749308905550,14.55009032,151.76,151.71,10.44]
[1749308905729,7.96073872,151.74,151.71,10.44]
[1749308906742,14.55107407,151.74,151.71,10.44]
[1749308907329,7.96073872,151.74,151.71,10.44]
[1749308907860,7.96073872,151.75,151.71,17.03146446]
[1749308908053,6.58940536,151.76,151.71,17.03146446]
[1749308908358,14.55014408,151.76,151.71,24.99220318]
[1749308909244,7.96073872,151.75,151.71,24.99220318]
[1749308909641,14.55055433,151.75,151.71,10.44]
[1749308909844,7.96073872,151.74,151.71,10.44]
[1749308911063,7.96073872,151.73,151.71,10.44]
[1749308911235,14.55149554,151.73,151.71,10.44]
[1749308913963,7.96073872,151.73,151.71,10.44]
[1749308914467,14.55111673,151.74,151.71,10.44]
[1749308914867,7.96073872,151.73,151.71,10.44]
[1749308915536,6.59037801,151.74,151.69,7.96073872]
[1749308915754,7.96073872,151.73,151.7,10.4]
[1749308916061,6.58978583,151.75,151.7,10.4]
[1749308916361,7.96073872,151.73,151.7,10.4]
[1749308917443,6.58978583,151.75,151.7,10.4]
[1749308917643,7.96073872,151.73,151.7,10.4]
[1749308918155,14.55142008,151.73,151.7,10.4]
[1749308918856,7.96073872,151.73,151.7,10.4]
[1749308919250,5.09982992,151.73,151.7,10.4]
[1749308920842,6.58978583,151.75,151.7,10.4]
[1749308921059,5.09982992,151.73,151.7,10.4]
[1749308921265,5.09982992,151.71,151.7,10.4]
[1749308921444,23.74947878,151.71,151.7,10.4]
[1749308921962,18.64964886,151.7,151.66,18.73333333]
[1749308922167,11.69222229,151.69,151.66,18.73333333]
[1749308922751,5.09982992,151.68,151.66,18.73333333]
[1749308923166,7.97340685,151.68,151.66,18.73333333]
[1749308925674,7.97340685,151.69,151.66,18.73333333]
[1749308927270,7.97340685,151.69,151.66,25.326971]
[1749308927444,26.62305571,151.7,151.66,33.30037785]
[1749308927646,7.97340685,151.71,151.66,33.30037785]
[1749308927939,26.62305571,151.71,151.66,33.30037785]
[1749308929174,7.97340685,151.72,151.68,7.97340685]
[1749308930171,7.97340685,151.71,151.67,7.97340685]
[1749308930974,7.97340685,151.71,151.67,14.56631519]
[1749308936978,14.56493084,151.71,151.67,7.97340685]
[1749308937580,14.56493084,151.71,151.67,14.5666624]
[1749308937775,7.97340685,151.71,151.67,14.5666624]
[1749308942387,26.62305571,151.74,151.69,7.97340685]
[1749308942685,26.62305571,151.74,151.7,7.97340685]
[1749308943059,25.23988184,151.74,151.7,7.97340685]
[1749308943261,33.21328869,151.74,151.7,7.97340685]
[1749308943559,26.62305571,151.74,151.7,7.97340685]
[1749308943885,7.97340685,151.74,151.7,18.39340685]
[1749308944088,27.626,151.75,151.7,18.39340685]
[1749308944288,7.97340685,151.74,151.7,24.98510858]
[1749308944468,33.97340685,151.75,151.71,7.97340685]
[1749308944994,7.97340685,151.75,151.71,7.97340685]
[1749308946757,7.97340685,151.75,151.71,14.56478851]
[1749308947164,5.09832903,151.75,151.71,11.68971069]
[1749308948488,10.01931646,151.76,151.72,5.09832903]
[1749308948790,4.92801008,151.76,151.72,5.09832903]
[1749308949280,18.64964886,151.77,151.72,5.09832903]
[1749308949462,28.67543186,151.77,151.73,6.59065445]
[1749308950062,28.6756772,151.77,151.72,11.68924528]
[1749308950369,4.92795981,151.76,151.72,11.68924528]
[1749308951361,10.02628884,151.76,151.72,11.68924528]
[1749308952592,10.02628884,151.76,151.72,5.09832903]
[1749308954276,25.23858022,151.77,151.72,11.68938043]
[1749308954480,5.09832903,151.76,151.72,11.68938043]
[1749308955392,28.67491486,151.77,151.72,11.68938043]
[1749308955982,10.025266,151.77,151.72,11.68938043]
[1749308956183,5.09832903,151.78,151.74,5.09832903]
[1749308956378,18.64964886,151.78,151.74,5.09832903]
[1749308957082,23.74797789,151.78,151.74,5.09832903]
[1749308957290,5.09832903,151.78,151.74,11.6883477]
[1749308957675,10.02321656,151.79,151.75,5.09832903]
[1749308957877,18.64964886,151.79,151.75,5.09832903]
[1749308958280,56.12633879,151.8,151.76,5.09832903]
[1749308959700,56.12633879,151.8,151.77,5.09832903]
[1749308959701,25.02800976,151.8,151.77,5.09832903]
[1749308961183,25.02800976,151.8,151.77,7.95959204]
[1749308961906,25.02800976,151.8,151.77,14.54822379]
[1749308962397,25.02800976,151.8,151.78,7.95959204]
[1749308962974,25.02800976,151.8,151.77,6.58863175]
[1749308963170,25.02800976,151.8,151.78,7.95959204]
[1749308964401,25.02800976,151.8,151.79,6.58804927]
[1749308964714,25.02800976,151.8,151.78,14.54789815]
[1749308965399,25.02800976,151.8,151.78,7.95959204]
[1749308967886,25.02800976,151.8,151.77,7.95959204]
[1749308968275,39.57524924,151.8,151.76,7.95959204]
[1749308968804,39.57524924,151.8,151.75,18.31959204]
[1749308969604,39.57524924,151.8,151.75,24.9093583]
[1749308969806,39.57524924,151.8,151.75,16.94976626]
[1749308969991,39.57524924,151.8,151.75,24.9093583]
[1749308970691,14.54723948,151.8,151.75,24.9093583]
[1749308971087,14.54723948,151.8,151.76,7.95959204]
[1749308971596,14.54723948,151.8,151.75,10.36]
[1749308971896,14.54723948,151.8,151.76,7.95959204]
[1749308972710,6.58764744,151.8,151.76,7.95959204]
[1749308973008,14.54723948,151.8,151.76,7.95959204]
[1749308975784,6.58764744,151.8,151.75,18.31959204]
[1749308976002,7.95959204,151.79,151.75,18.31959204]
[1749308976198,14.54805919,151.79,151.75,18.31959204]
[1749308977205,7.95959204,151.78,151.75,10.36]
[1749308977407,7.95959204,151.77,151.75,10.36]
[1749308978307,14.54856339,151.77,151.75,10.36]
[1749308978710,14.54824552,151.78,151.75,10.36]
[1749308981200,11.68530568,151.78,151.75,10.36]
[1749308986415,51.23769813,151.79,151.75,10.36]
[1749308986717,5.0966522,151.78,151.75,10.36]
[1749308987427,10.01546891,151.78,151.75,10.36]
[1749308988301,5.0966522,151.78,151.75,10.36]
[1749308988619,6.58891744,151.77,151.75,10.36]
[1749308991806,11.68556964,151.77,151.75,10.36]
[1749308994708,28.67623168,151.76,151.72,10.3]
[1749308994919,5.0966522,151.75,151.72,10.3]
[1749308995111,23.74630106,151.76,151.72,10.3]
[1749308995499,26.0,151.78,151.74,5.0966522]
[1749308995800,6.15904737,151.81,151.74,5.0966522]
[1749308995801,5.0966522,151.79,151.74,5.0966522]
[1749308996010,4.92931105,151.78,151.74,5.0966522]
[1749308997411,11.68505969,151.79,151.74,5.0966522]
[1749308997730,4.93032664,151.78,151.74,11.6868266]
[1749308998023,4.93031846,151.78,151.74,21.9868266]
[1749308998198,4.93031846,151.78,151.74,15.3966522]
[1749308998399,11.68505969,151.79,151.74,15.3966522]
[1749308998630,4.93084027,151.78,151.74,15.3966522]
[1749308998810,5.0966522,151.75,151.74,10.3]
[1749308999120,5.0966522,151.78,151.74,10.3]
[1749308999324,4.93107141,151.77,151.74,10.3]
[1749308999528,11.68515863,151.78,151.74,10.3]
[1749308999699,10.02811998,151.77,151.74,10.3]
[1749308999902,5.0966522,151.77,151.74,10.3]
[1749309001216,5.0966522,151.76,151.74,10.3]
[1749309003138,11.68609965,151.76,151.74,10.3]
[1749309003805,23.74630106,151.75,151.69,6.0769]
[1749309004003,5.0966522,151.72,151.7,10.3]
[1749309004318,5.05274442,151.73,151.7,10.3]
[1749309004522,11.64344933,151.73,151.7,10.3]
[1749309006221,11.68735711,151.73,151.7,10.3]
[1749309006621,6.59070491,151.73,151.7,10.3]
[1749309006932,11.68735711,151.73,151.7,10.3]
[1749309007228,14.5594427,151.73,151.7,10.3]
[1749309007929,7.96873779,151.71,151.7,10.3]
[1749309008440,12.89739412,151.71,151.66,18.65333333]
[1749309008634,7.96873779,151.69,151.66,18.65333333]
[1749309009518,7.96873779,151.67,151.66,18.65333333]
[1749309011453,14.56199947,151.67,151.66,18.65333333]
[1749309011655,14.56199947,151.67,151.66,8.33333333]
[1749309012773,33.21164833,151.67,151.66,8.33333333]
[1749309026244,33.21164833,151.67,151.66,8.33333333]
[1749309032047,25.24291054,151.67,151.66,8.33333333]
[1749309032254,33.21164833,151.67,151.66,8.33333333]
[1749309033175,30.34859762,151.67,151.66,8.33333333]
[1749309038069,25.24291054,151.67,151.66,8.33333333]
[1749309038267,30.34859762,151.67,151.66,8.33333333]
[1749309040059,25.24291054,151.67,151.66,8.33333333]
[1749309040259,30.34859762,151.67,151.66,8.33333333]
[1749309041060,25.24291054,151.67,151.66,8.33333333]
[1749309041376,26.0,151.67,151.66,8.33333333]
[1749309041958,11.69839979,151.69,151.66,8.33333333]
[1749309043281,7.97345888,151.68,151.66,8.33333333]
[1749309045210,14.56665153,151.68,151.66,8.33333333]
[1749309047783,7.97345888,151.67,151.66,8.33333333]
[1749309048080,26.62310774,151.67,151.66,8.33333333]
[1749309049263,33.21636942,151.67,151.66,8.33333333]
[1749309051785,38.13739853,151.67,151.66,8.33333333]
[1749309051970,33.21636942,151.67,151.66,8.33333333]
[1749309053162,38.14788502,151.67,151.66,8.33333333]
[1749309061862,64.14788502,151.67,151.66,8.33333333]
[1749309062363,64.14788502,151.67,151.66,3.38315528]
[1749309062364,44.26657903,151.67,151.66,3.38315528]
[1749309062561,45.90177903,151.67,151.66,3.38315528]
[1749309063280,45.90177903,151.67,151.66,2.38315528]
[1749309064196,18.64964886,151.59,151.56,0.9255948]
[1749309064402,18.64964886,151.63,151.56,0.9255948]
[1749309064403,7.97345888,151.58,151.56,0.9255948]
[1749309064581,4.93170295,151.59,151.56,0.9255948]
[1749309064781,7.97345888,151.58,151.56,0.9255948]
[1749309065290,11.70738309,151.58,151.56,0.9255948]
[1749309065586,5.10995347,151.57,151.56,0.9255948]
[1749309065802,23.75960233,151.57,151.56,0.9255948]
[1749309066188,26.0,151.57,151.56,0.9255948]
[1749309066385,49.75960233,151.57,151.56,0.9255948]
[1749309066779,31.10995347,151.57,151.56,0.9255948]
[1749309066981,18.64964886,151.59,151.56,0.9255948]
[1749309067309,59.23005166,151.57,151.56,0.9255948]
[1749309070801,18.64964886,151.52,151.4,8.074]
[1749309070978,40.26,151.51,151.43,7.98279114]
[1749309071179,7.98279114,151.47,151.42,7.98279114]
[1749309071402,26.0,151.47,151.43,7.98279114]
[1749309071617,26.0,151.49,151.45,7.98279114]
[1749309072128,18.64964886,151.53,151.48,7.98279114]
[1749309072306,7.98279114,151.5,151.47,1.5959]
[1749309072506,33.98279114,151.51,151.47,1.5959]
[1749309073017,26.0,151.51,151.47,1.5959]
[1749309073222,33.98279114,151.51,151.47,9.57869114]
[1749309073601,33.98279114,151.51,151.47,1.5959]
[1749309073803,40.58302944,151.51,151.47,1.5959]
[1749309074405,32.6002383,151.51,151.47,1.5959]
[1749309074724,7.98279114,151.52,151.48,7.98279114]
[1749309076130,14.58269873,151.52,151.48,7.98279114]
[1749309076925,32.5994944,151.53,151.48,7.98279114]
[1749309077105,26.0,151.53,151.49,7.98279114]
[1749309078112,33.98279114,151.53,151.48,6.60141289]
[1749309078319,40.58215546,151.53,151.48,14.58420403]
[1749309078519,40.58215546,151.53,151.49,7.98279114]
[1749309079115,40.58215546,151.53,151.48,14.58420403]
[1749309079311,7.98279114,151.52,151.48,7.98279114]
[1749309079505,7.98279114,151.52,151.47,1.5959]
[1749309079506,7.98279114,151.52,151.47,9.57869114]
[1749309079709,7.98279114,151.51,151.47,9.57869114]
[1749309080213,14.58326045,151.51,151.47,9.57869114]
[1749309080417,14.58326045,151.51,151.47,1.5959]
[1749309080607,7.98279114,151.5,151.46,14.46089114]
[1749309081007,7.98279114,151.5,151.46,6.4781]
[1749309081229,7.98279114,151.5,151.46,14.46089114]
[1749309082118,14.5836979,151.5,151.46,6.4781]
[1749309082323,7.98279114,151.49,151.46,6.4781]
[1749309082517,7.98279114,151.49,151.45,10.4]
[1749309083432,6.60090676,151.5,151.45,18.38279114]
[1749309083617,7.98279114,151.49,151.45,18.38279114]
[1749309085031,6.60028233,151.51,151.46,7.98279114]
[1749309085216,14.58307347,151.51,151.46,7.98279114]
[1749309085421,7.98279114,151.5,151.46,7.98279114]
[1749309086339,7.98279114,151.51,151.46,7.98279114]
[1749309086535,25.24958564,151.52,151.47,7.98279114]
[1749309086727,33.23237678,151.52,151.48,7.98279114]
[1749309087124,26.63244,151.52,151.48,7.98279114]
[1749309087329,33.23222902,151.52,151.48,7.98279114]
[1749309087637,33.23222902,151.52,151.47,7.98279114]
[1749309087840,26.63244,151.52,151.47,7.98279114]
[1749309088221,33.23240497,151.52,151.47,7.98279114]
[1749309088421,33.23240497,151.52,151.47,14.58451894]
[1749309088837,7.98279114,151.51,151.47,7.98279114]
[1749309089443,7.98279114,151.51,151.46,6.60225062]
[1749309089948,7.98279114,151.51,151.46,14.58504176]
[1749309090261,7.98279114,151.5,151.46,7.98279114]
[1749309090418,7.98279114,151.5,151.45,24.98546468]
[1749309091546,14.58353525,151.5,151.45,24.98546468]
[1749309093248,14.58353525,151.5,151.46,7.98279114]
[1749309093448,26.63244,151.52,151.48,7.98279114]
[1749309093948,18.64964886,151.52,151.47,7.98279114]
[1749309094144,7.98279114,151.51,151.47,7.98279114]
[1749309095454,7.98279114,151.51,151.46,6.60239475]
[1749309095640,14.58306371,151.51,151.47,7.98279114]
[1749309096038,6.60027257,151.51,151.47,7.98279114]
[1749309098258,33.2323981,151.52,151.47,7.98279114]
[1749309101161,25.24960696,151.52,151.47,14.5846694]
[1749309101330,33.2323981,151.52,151.47,14.5846694]
[1749309102174,7.98279114,151.51,151.47,14.5846694]
[1749309105038,4.90460472,151.55,151.5,7.98279114]
[1749309105239,33.98279114,151.53,151.47,13.10367826]
[1749309105443,33.98279114,151.53,151.48,7.98279114]
[1749309106446,40.58245407,151.53,151.48,7.98279114]
[1749309108152,45.48690742,151.53,151.48,7.98279114]
[1749309108353,40.58245407,151.53,151.48,7.98279114]
[1749309108554,45.48690742,151.53,151.48,7.98279114]
[1749309108858,7.98279114,151.52,151.47,13.10375241]
[1749309109041,7.98279114,151.51,151.47,14.48459114]
[1749309109242,12.88724449,151.51,151.47,7.98279114]
[1749309109465,7.98279114,151.51,151.47,7.98279114]
[1749309109639,12.88724449,151.51,151.47,7.98279114]
[1749309109837,14.58324524,151.51,151.46,6.60238026]
[1749309110039,14.58324524,151.51,151.47,7.98279114]
[1749309110543,19.50835786,151.51,151.47,7.98279114]
[1749309110752,6.6004541,151.51,151.47,7.98279114]
[1749309110938,11.52556672,151.51,151.47,7.98279114]
[1749309111138,6.6004541,151.51,151.47,7.98279114]
[1749309111571,11.52761748,151.51,151.47,7.98279114]
[1749309111754,6.6004541,151.51,151.47,7.98279114]
[1749309112149,4.93034638,151.5,151.47,7.98279114]
[1749309112976,6.59995557,151.52,151.48,7.98279114]
[1749309113270,4.93329143,151.51,151.48,7.98279114]
[1749309113455,6.59995557,151.52,151.48,7.98279114]
[1749309113652,4.93329203,151.51,151.48,7.98279114]
[1749309113856,32.59951959,151.53,151.49,7.98279114]
[1749309114060,4.93329363,151.52,151.49,7.98279114]
[1749309114257,4.93329363,151.51,151.49,7.98279114]
[1749309114452,32.59951959,151.53,151.49,7.98279114]
[1749309114657,4.93429321,151.52,151.49,7.98279114]
[1749309114855,4.93429321,151.51,151.49,7.98279114]
[1749309115053,32.59951959,151.53,151.49,7.98279114]
[1749309115371,4.93619265,151.52,151.49,7.98279114]
[1749309115580,4.93619265,151.51,151.49,7.98279114]
[1749309115770,32.59951959,151.53,151.49,7.98279114]
[1749309116074,4.9362174,151.52,151.49,7.98279114]
[1749309116244,4.9362174,151.51,151.49,7.98279114]
[1749309116447,32.59951959,151.53,151.49,7.98279114]
[1749309116758,4.93639616,151.52,151.49,7.98279114]
[1749309116957,26.0,151.53,151.51,7.98279114]
[1749309117160,26.0,151.53,151.49,6.60077003]
[1749309117161,4.93614993,151.52,151.5,7.98279114]
[1749309117474,26.0,151.53,151.5,7.98279114]
[1749309117774,4.93674489,151.54,151.52,7.98279114]
[1749309117973,6.59819533,151.56,151.52,7.98279114]
[1749309118178,4.93685517,151.55,151.52,7.98279114]
[1749309118343,33.23015229,151.57,151.52,7.98279114]
[1749309118549,4.93485798,151.56,151.52,7.98279114]
[1749309118854,4.93485798,151.55,151.52,7.98279114]
[1749309119055,33.23015229,151.57,151.52,7.98279114]
[1749309119254,4.93315504,151.56,151.52,7.98279114]
[1749309119475,4.93315504,151.55,151.52,7.98279114]
[1749309119669,33.23015229,151.57,151.52,7.98279114]
[1749309119877,12.91605909,151.56,151.52,7.98279114]
[1749309120063,4.93326795,151.55,151.52,7.98279114]
[1749309121253,4.93326795,151.56,151.52,7.98279114]
[1749309121452,4.93326795,151.55,151.52,7.98279114]
[1749309121653,14.58086426,151.56,151.52,7.98279114]
[1749309123352,19.5087339,151.56,151.52,7.98279114]
[1749309124262,14.58086426,151.56,151.52,7.98279114]
[1749309124484,19.50766765,151.56,151.52,7.98279114]
[1749309125171,16.63583265,151.56,151.52,5.11095614]
[1749309125477,4.92680339,151.55,151.52,5.11095614]
[1749309125882,16.63583265,151.56,151.52,5.11095614]
[1749309126170,16.63583265,151.56,151.5,47.02051399]
[1749309126171,5.11095614,151.53,151.48,89.5]
[1749309126374,5.11095614,151.51,151.47,15.59095614]
[1749309127173,14.59189319,151.51,151.47,10.48]
[1749309127477,14.59189319,151.51,151.47,18.47134516]
[1749309129362,6.59994069,151.52,151.47,25.07319862]
[1749309129578,7.99134516,151.52,151.48,7.99134516]
[1749309129759,12.91779145,151.52,151.48,7.99134516]
[1749309129961,7.99134516,151.52,151.48,7.99134516]
[1749309130159,12.91779145,151.52,151.48,7.99134516]
[1749309130354,12.91779145,151.53,151.48,7.99134516]
[1749309130673,14.59075456,151.53,151.48,14.59284101]
[1749309130973,14.59075456,151.53,151.49,7.99134516]
[1749309131176,33.99134516,151.55,151.51,7.99134516]
[1749309131353,30.92743343,151.55,151.51,7.99134516]
[1749309131552,4.92743343,151.55,151.52,7.99134516]
[1749309131964,4.92743343,151.56,151.52,7.99134516]
[1749309132385,12.91877859,151.56,151.52,7.99134516]
[1749309132568,12.91877859,151.56,151.52,14.59077665]
[1749309134480,7.99134516,151.56,151.52,14.59077665]